Workbook

Sheet 1. Info
AC1: =IF('3. Data_Input_Sheet'!M12=0, "", '3. Data_Input_Sheet'!M12) -> Settlement Agreement
P11: Version | Q11: 5
F16: Utility Name | G16: Hydro Ottawa Limited
F18: Service Territory
F20: Assigned EB Number | G20: EB-2015-0004 (Year 2018) | AA20: Company Name
Z21: 1 | AA21: Algoma Power Inc.
F22: Name and Title | G22: April Barrie; Manager, Rates and Revenue | Z22: 2 | AA22: Atikokan Hydro Inc.
Z23: 3 | AA23: Attawapiskat Power Corp.
F24: Phone Number | G24: 613-738-5499, ext 106 | Z24: 4 | AA24: Bluewater Power Distribution Corporation
Z25: 5 | AA25: Brant County Power Inc.
F26: Email Address | G26: RegulatoryAffairs@HydroOttawa.com | Z26: 6 | AA26: Brantford Power Inc.
Z27: 7 | AA27: Burlington Hydro Inc.
Z28: 8 | AA28: Cambridge and North Dumfries Hydro Inc.
Z29: 9 | AA29: Canadian Niagara Power Inc.
Z30: 10 | AA30: Centre Wellington Hydro Ltd.
Z31: 11 | AA31: Chapleau Public Utilities Corporation
Z32: 12 | AA32: Clinton Power Corporation
Z33: 13 | AA33: COLLUS Power Corporation
Z34: 14 | AA34: Cooperative Hydro Embrun Inc.
Z35: 15 | AA35: E.L.K. Energy Inc.
Z36: 16 | AA36: Enersource Hydro Mississauga Inc.
Z37: 17 | AA37: Entegrus Powerlines Inc.
Z38: 18 | AA38: ENWIN Utilities Ltd.
Z39: 19 | AA39: Erie Thames Powerlines Corporation
Z40: 20 | AA40: Espanola Regional Hydro Distribution Corporation
Z41: 21 | AA41: Essex Powerlines Corporation
Z42: 22 | AA42: Festival Hydro Inc.
Z43: 23 | AA43: Festival Hydro Inc. - Hensall
Z44: 24 | AA44: Fort Albany Power Corporation
Z45: 25 | AA45: Fort Frances Power Corporation
Z46: 26 | AA46: Greater Sudbury Hydro Inc.
Z47: 27 | AA47: Grimsby Power Inc.
Z48: 28 | AA48: Guelph Hydro Electric Systems Inc.
Z49: 29 | AA49: Haldimand County Hydro Inc.
Z50: 30 | AA50: Halton Hills Hydro Inc.
Z51: 31 | AA51: Hearst Power Distribution Company Limited
Z52: 32 | AA52: Horizon Utilities Corporation
Z53: 33 | AA53: Hydro 2000 Inc.
Z54: 34 | AA54: Hydro Hawkesbury Inc.
Z55: 35 | AA55: Hydro One Brampton Networks Inc.
Z56: 36 | AA56: Hydro One Networks Inc.
Z57: 37 | AA57: Hydro Ottawa Limited
Z58: 38 | AA58: Innisfil Hydro Distribution Systems Limited
Z59: 39 | AA59: Kashechewan Power Corporation
Z60: 40 | AA60: Kenora Hydro Electric Corporation Ltd.
Z61: 41 | AA61: Kingston Hydro Corporation
Z62: 42 | AA62: Kitchener-Wilmot Hydro Inc.
Z63: 43 | AA63: Lakefront Utilities Inc.
Z64: 44 | AA64: Lakeland Power Distribution Ltd.
Z65: 45 | AA65: London Hydro Inc.
Z66: 46 | AA66: Midland Power Utility Corporation
Z67: 47 | AA67: Milton Hydro Distribution inc.
Z68: 48 | AA68: Newmarket - Tay Power Distribution Ltd.
Z69: 49 | AA69: Niagara Peninsula Energy Inc.
Z70: 50 | AA70: Niagara-on-the-Lake Hydro Inc.
Z71: 51 | AA71: Norfolk Power Distribution Inc.
Z72: 52 | AA72: North Bay Hydro Distribution Limited
Z73: 53 | AA73: Northern Ontario Wires Inc.
Z74: 54 | AA74: Oakville Hydro Electricity Distribution Inc.
Z75: 55 | AA75: Orangeville Hydro Limited
Z76: 56 | AA76: Orillia Power Distribution Corporation
Z77: 57 | AA77: Oshawa PUC Networks Inc.
Z78: 58 | AA78: Ottawa River Power Corporation
Z79: 59 | AA79: Parry Sound Power Corporation
Z80: 60 | AA80: Peterborough Distribution Incorporated
Z81: 61 | AA81: PowerStream Inc.
Z82: 62 | AA82: PUC Distribution Inc.
Z83: 63 | AA83: Renfrew Hydro Inc.
Z84: 64 | AA84: Rideau St. Lawrence Distribution Inc.
Z85: 65 | AA85: Sioux Lookout Hydro Inc.
Z86: 66 | AA86: St. Thomas Energy Inc.
Z87: 67 | AA87: Thunder Bay Hydro Electricity Distribution Inc.
Z88: 68 | AA88: Tillsonburg Hydro Inc.
Z89: 69 | AA89: Toronto Hydro-Electric System Limited
Z90: 70 | AA90: Veridian Connections Inc.
Z91: 71 | AA91: Wasaga Distribution Inc.
Z92: 72 | AA92: Waterloo North Hydro Inc.
Z93: 73 | AA93: Welland Hydro-Electric System Corp.
Z94: 74 | AA94: Wellington North Power Inc.
Z95: 75 | AA95: West Coast Huron Energy Inc.
Z96: 76 | AA96: West Perth Power Inc.
Z97: 77 | AA97: Westario Power Inc.
Z98: 78 | AA98: Whitby Hydro Electric Corporation
Z99: 79 | AA99: Woodstock Hydro Services Inc.

Sheet 2. Table of Contents
D11: 1. Info | I11: 6. Taxes_PILs
D13: 2. Table of Contents | I13: 7. Cost_of_Capital
D15: 3. Data_Input_Sheet | I15: 8. Rev_Def_Suff
D17: 4. Rate_Base | I17: 9. Rev_Reqt
D19: 5. Utility Income | I19: 10. Tracking Sheet
A24: Notes:
A25: (1) | B25: Pale green cells represent inputs
A26: (2) | B26: Pale green boxes at the bottom of each page are for additional notes
A27: (3) | B27: Pale yellow cells represent drop-down lists
A28: (4) | B28: Please note that this model uses MACROS. Before starting, please ensure that macros have been enabled.
A29: (5) | B29: Completed versions of the Revenue Requirement Work Form are required to be filed in working Microsoft Excel format.

Sheet 3. Data_Input_Sheet
U1: =CONCATENATE('2. Table of Contents'!$F$6," ",'2. Table of Contents'!$G$6) -> 
B9: Data Input (1)
E12: Initial Application | G12: (2) | I12: =IF(ISBLANK(M12),"","Adjustments") -> Adjustments | M12: Settlement Agreement | O12: (6) | Q12: =IF(ISBLANK(M12),"","Adjustments") -> Adjustments | U12: Per Board Decision
B15: 1 | C15: Rate Base
C16: Gross Fixed Assets (average) | E16: 1051985626 | I16: =1047896939.5-E16-19492796-(10000000+4574748+5000000)-5000000/2 -> -45656230.91 | K16: 12 | M16: =IF(ISBLANK(E16),0,E16+I16) -> 1006329396 | O16: 12 | U16: =IF(ISBLANK(E16),"",E16+I16+Q16) -> 1006329396
C17: Accumulated Depreciation (average) | E17: -179426302 | G17: (5) | I17: =-176516401.1-E17+(333000*2+43724+166476)+((333000+222031)/2) -> 4063616.385 | K17: 12 | M17: =IF(ISBLANK(E17),0,E17+I17) -> -175362685.6 | O17: 12 | U17: =IF(ISBLANK(E17),"",E17+I17+Q17) -> -175362685.6
C18: Allowance for Working Capital:
C19: Controllable Expenses | E19: 92850437.37 | I19: -6539923.192 | M19: =IF(ISBLANK(E19),0,E19+I19) -> 86310514.18 | U19: =IF(ISBLANK(E19),"",E19+I19+Q19) -> 86310514.18
C20: Cost of Power | E20: 947558773.4 | M20: =IF(ISBLANK(E20),0,E20+I20) -> 947558773.4 | U20: =IF(ISBLANK(E20),"",E20+I20+Q20) -> 947558773.4
C21: Working Capital Rate (%) | E21: 0.142 | G21: (9) | M21: 0.0792 | O21: (9) | U21: =IF(ISBLANK(M21),IF(ISBLANK(E21),0,E21),M21) -> 0.0792 | W21: (9)
B23: 2 | C23: Utility Income
C24: Operating Revenues:
C25: Distribution Revenue at Current Rates | E25: =159418980.3746-1109103.075 -> 158309877.3 | G25: 10 | I25: =IF(ISBLANK(M25),"",IF(ISBLANK(E25),"",M25-E25)) -> 2167.7004 | M25: 158312045 | O25: 13 | Q25: =IF(ISBLANK(U25),"",IF(ISBLANK(M25),"",U25-M25)) -> 
C26: Distribution Revenue at Proposed Rates | E26: 196398373.8 | I26: =IF(ISBLANK(M26),"",IF(ISBLANK(E26),"",M26-E26)) -> -17523381.78 | M26: 178874992 | O26: 11 | Q26: =IF(ISBLANK(U26),"",IF(ISBLANK(M26),"",U26-M26)) -> 
C27: Other Revenue:
C28: Specific Service Charges | E28: 6014982 | I28: =IF(ISBLANK(M28),"",IF(ISBLANK(E28),"",M28-E28)) -> -2550 | M28: =+E28-2550 -> 6012432 | O28: 15 | Q28: =IF(ISBLANK(U28),"",IF(ISBLANK(M28),"",U28-M28)) -> 
C29: Late Payment Charges | E29: 720000 | I29: =IF(ISBLANK(M29),"",IF(ISBLANK(E29),"",M29-E29)) -> 0 | M29: =+E29 -> 720000 | Q29: =IF(ISBLANK(U29),"",IF(ISBLANK(M29),"",U29-M29)) -> 
C30: Other Distribution Revenue | E30: 1469736 | I30: =IF(ISBLANK(M30),"",IF(ISBLANK(E30),"",M30-E30)) -> 0 | M30: 1469736 | Q30: =IF(ISBLANK(U30),"",IF(ISBLANK(M30),"",U30-M30)) -> 
C31: Other Income and Deductions | E31: 3517322.684 | I31: =IF(ISBLANK(M31),"",IF(ISBLANK(E31),"",M31-E31)) -> 0 | M31: 3517322.684 | Q31: =IF(ISBLANK(U31),"",IF(ISBLANK(M31),"",U31-M31)) -> 
D33: Total Revenue Offsets | E33: =SUM(E28:E31) -> 11722040.68 | G33: (7) | I33: =IF(ISBLANK(M33),"",IF(ISBLANK(E33),"",M33-E33)) -> -2550 | M33: =SUM(M28:M31) -> 11719490.68 | Q33: =IF(ISBLANK(U33),"",IF(ISBLANK(M33),"",U33-M33)) -> 
C35: Operating Expenses:
C36: OM+A Expenses | E36: 90624893.79 | I36: -6539923.192 | M36: =IF(ISBLANK(E36),"",E36+I36) -> 84084970.6 | U36: =IF(ISBLANK(E36),"",E36+I36+Q36) -> 84084970.6
C37: Depreciation/Amortization | E37: 47047408.89 | I37: =46943424-E37-333000-222031 -> -659015.8889 | K37: 12 | M37: =IF(ISBLANK(E37),"",E37+I37) -> 46388393 | U37: =IF(ISBLANK(E37),"",E37+I37+Q37) -> 46388393
C38: Property taxes | E38: 2225543.581 | M38: =IF(ISBLANK(E38),"",E38+I38) -> 2225543.581 | U38: =IF(ISBLANK(E38),"",E38+I38+Q38) -> 2225543.581
C39: Capital taxes | E39: =IF(ISBLANK(E48),"",E48) ->  | M39: =IF(ISBLANK(M48),"",M48) ->  | U39: =IF(ISBLANK(U48),"",U48) -> 
C40: Other expenses | M40: =IF(ISBLANK(E40),"",E40+I40) ->  | U40: =IF(ISBLANK(E40),"",E40+I40+Q40) -> 
B42: 3 | C42: Taxes/PILs
C43: Taxable Income:
D44: Adjustments required to arrive at taxable income | E44: =48997962-68837331.9542137-120000 -> -19959369.95 | G44: (3) | M44: =56812754-76286804 -> -19474050 | O44: 14
C45: Utility Income Taxes and Rates:
C46: Income taxes (not grossed up) | E46: 4476359 | M46: 3599306 | O46: 14
C47: Income taxes (grossed up) | E47: =IF(ISBLANK(E46),"",E46/(1-SUM(E49:E50))) -> 6074211.167 | M47: =IF(ISBLANK(M46),"",M46/(1-SUM(M49:M50))) -> 4897014.966 | U47: =IF(ISBLANK(U46),"",U46/(1-SUM(U49:U50))) -> 
C48: Capital Taxes
C49: Federal tax (%) | E49: 0.15 | M49: =+E49 -> 0.15
C50: Provincial tax (%) | E50: 0.1130550903 | M50: 0.115
C51: Income Tax Credits | E51: -257500 | M51: -132500
B53: 4 | C53: Capitalization/Cost of Capital
C54: Capital Structure:
C55: Long-term debt Capitalization Ratio (%) | E55: 0.56 | M55: =+E55 -> 0.56
C56: Short-term debt Capitalization Ratio (%) | E56: 0.04 | G56: (8) | M56: =+E56 -> 0.04 | O56: (8) | W56: (8)
C57: Common Equity Capitalization Ratio (%) | E57: 0.4 | M57: 0.4
C58: Prefered Shares Capitalization Ratio (%)
E59: =SUM(E55:E58) -> 1 | M59: =SUM(M55:M58) -> 1 | U59: =SUM(U55:U58) -> 0
E60: =IF(ISBLANK(E57),"",IF(SUM(E55:E58)=100%,"","Capital Structure must total 100%")) ->  | M60: =IF(ISBLANK(M57),"",IF(SUM(M55:M58)=100%,"","Capital Structure must total 100%")) ->  | U60: =IF(ISBLANK(U57),"",IF(SUM(U55:U58)=100%,"","Capital Structure must total 100%")) -> 
C61: Cost of Capital
C62: Long-term debt Cost Rate (%) | E62: 0.0408 | M62: 0.03649
C63: Short-term debt Cost Rate (%) | E63: 0.0216 | M63: =+E63 -> 0.0216
C64: Common Equity Cost Rate (%) | E64: 0.093 | M64: 0.0919 | O64: 17
C65: Prefered Shares Cost Rate (%)
A68: Notes:
B69: General | C69: Data inputs are required on Sheets 3. Data from Sheet 3 will automatically complete calculations on sheets 4 through 9 (Rate Base through Revenue Requirement). Sheets 4 through 9 do not require any inputs except for notes that the Applicant may wish to enter to support the results. Pale green cells are available on sheets 4 through 9 to enter both footnotes beside key cells and the related text for the notes at the bottom of each sheet.
B70: (1) | C70: All inputs are in dollars ($) except where inputs are individually identified as percentages (%)
B71: (2) | C71: Data in column E is for Application as originally filed. For updated revenue requirement as a result of interrogatory responses, technical or settlement conferences, etc., use colimn M and Adjustments in column I
B72: (3) | C72: Net of addbacks and deductions to arrive at taxable income.
B73: (4) | C73: Average of Gross Fixed Assets at beginning and end of the Test Year
B74: (5) | C74: Average of Accumulated Depreciation at the beginning and end of the Test Year. Enter as a negative amount.
B75: (6) | C75: Select option from drop-down list by clicking on cell M10. This column allows for the application update reflecting the end of discovery or Argument-in-Chief. Also, the outcome of any Settlement Process can be reflected.
B76: (7) | C76: Input total revenue offsets for deriving the base revenue requirement from the service revenue requirement
B77: (8) | C77: 4.0% unless an Applicant has proposed or been approved for another amount.
B78: (9) | C78: Starting with 2013, default Working Capital Allowance factor is 13% (of Cost of Power plus controllable expenses). Alternatively, WCA factor based on lead-lag study or approved WCA factor for another distributor, with supporting rationale.
B80: 10 | C80: Revenue at current rates minus Transformer Ownership Allowance
B81: 11 | C81: Distribution Revenue not including Transformer Ownership Allowance, Total Revenue Requirement is $179,984,095, number reflects amended settlement agreement.
B82: 12 | C82: Gross Fixed Assets (average) and Accumulated Depreciation (average) - Updated for 2014 Actuals and flow through 2016 through 2020, Per Settlement Removal of new facilities Land $19.4M, $10M reduction in Capital and $14.6M in CCRA payments
B83: 13 | C83: Correction - To include Sentinel Light Variable Charge
B84: 14 | C84: PILs - Update per (12); Ontario Apprenticeship Tax Credit program legislative changes; Ontario Small Business Deduction Correction; Charitable Contributions Correction, Pils update per Settlement Agreement, Updated for October 2015 ROE and Settled Working Capital Rate %
B85: 15 | C85: Removal of missed appointment charge
B86: 16 | C86: Changes per settlement agreement, including using April 2015 consensus long-term forecast
B87: 17 | C87: Updated per October 2015 Deemed ROE, Also related to note (9) Settled Working Capital Rate %

Sheet 4. Rate_Base
B6: Rate Base and Working Capital
D10: Rate Base
B11: Line No. | D11: Particulars | G11: Initial Application | K11: =IF(ISBLANK('3. Data_Input_Sheet'!M12),"",'3. Data_Input_Sheet'!I12) -> Adjustments | O11: =IF(ISBLANK('3. Data_Input_Sheet'!M12)," ",'3. Data_Input_Sheet'!M12) -> Settlement Agreement | S11: =IF(ISBLANK('3. Data_Input_Sheet'!Q12),"",'3. Data_Input_Sheet'!Q12) -> Adjustments | W11: ='3. Data_Input_Sheet'!U12 -> Per Board Decision
B13: 1 | D13: Gross Fixed Assets (average) | E13: (3) | G13: ='3. Data_Input_Sheet'!E16 -> 1051985626 | K13: ='3. Data_Input_Sheet'!I16 -> -45656230.91 | O13: =G13+K13 -> 1006329396 | S13: ='3. Data_Input_Sheet'!Q16 -> 0 | W13: =G13+K13+S13 -> 1006329396
B14: 2 | D14: Accumulated Depreciation (average) | E14: (3) | G14: ='3. Data_Input_Sheet'!E17 -> -179426302 | K14: ='3. Data_Input_Sheet'!I17 -> 4063616.385 | O14: =G14+K14 -> -175362685.6 | S14: ='3. Data_Input_Sheet'!Q17 -> 0 | W14: =G14+K14+S14 -> -175362685.6
B15: 3 | D15: Net Fixed Assets (average) | E15: (3) | G15: =SUM(G13:G14) -> 872559324.4 | K15: =SUM(K13:K14) -> -41592614.52 | O15: =SUM(O13:O14) -> 830966709.9 | S15: =SUM(S13:S14) -> 0 | W15: =SUM(W13:W14) -> 830966709.9
B17: 4 | D17: Allowance for Working Capital | E17: (1) | G17: =G30 -> 147738107.9 | K17: =K30 -> -65855660.35 | O17: =O30 -> 81882447.58 | S17: =S30 -> 0 | W17: =W30 -> 81882447.58
D18: Total Rate Base | G18: =G17+G15 -> 1020297432 | K18: =K17+K15 -> -107448274.9 | O18: =O17+O15 -> 912849157.5 | S18: =S17+S15 -> 0 | W18: =W15+W17 -> 912849157.5
B19: 5
C20: (1) | D20: Allowance for Working Capital - Derivation
B24: 6 | D24: Controllable Expenses | G24: ='3. Data_Input_Sheet'!E19 -> 92850437.37 | K24: ='3. Data_Input_Sheet'!I19 -> -6539923.192 | O24: =G24+K24 -> 86310514.18 | S24: ='3. Data_Input_Sheet'!Q19 -> 0 | W24: =G24+K24+S24 -> 86310514.18
B25: 7 | D25: Cost of Power | G25: ='3. Data_Input_Sheet'!E20 -> 947558773.4 | K25: ='3. Data_Input_Sheet'!I20 -> 0 | O25: =G25+K25 -> 947558773.4 | S25: ='3. Data_Input_Sheet'!Q20 -> 0 | W25: =G25+K25+S25 -> 947558773.4
B26: 8 | D26: Working Capital Base | G26: =SUM(G24:G25) -> 1040409211 | K26: =K24+K25 -> -6539923.192 | O26: =SUM(O24:O25) -> 1033869288 | S26: =S24+S25 -> 0 | W26: =SUM(W24:W25) -> 1033869288
B28: 9 | D28: Working Capital Rate % | E28: (2) | G28: ='3. Data_Input_Sheet'!E21 -> 0.142 | K28: =O28-G28 -> -0.0628 | O28: ='3. Data_Input_Sheet'!M21 -> 0.0792 | S28: =W28-O28 -> 0 | W28: ='3. Data_Input_Sheet'!U21 -> 0.0792
B30: 10 | D30: Working Capital Allowance | G30: =G26*G28 -> 147738107.9 | K30: =O30-G30 -> -65855660.35 | O30: =O26*O28 -> 81882447.58 | S30: =W30-O30 -> 0 | W30: =W26*W28 -> 81882447.58
B33: Notes
B34: (2) | D34: Some Applicants may have a unique rate as a result of a lead-lag study. The default rate for 2014 cost of service applications is 13%.
B35: (3) | D35: Average of opening and closing balances for the year.

Sheet 5. Utility Income
B11: Utility Income
B13: Line No. | D13: Particulars | F13: Initial Application | J13: =IF(N13="","","Adjustments") -> Adjustments | N13: =IF(ISBLANK('3. Data_Input_Sheet'!M12),"",'3. Data_Input_Sheet'!M12) -> Settlement Agreement | R13: =IF(N13="","","Adjustments") -> Adjustments | V13: ='3. Data_Input_Sheet'!U12 -> Per Board Decision
D15: Operating Revenues:
B16: 1 | D16: Distribution Revenue (at Proposed Rates) | F16: ='3. Data_Input_Sheet'!E26 -> 196398373.8 | J16: =N16-F16 -> -17523381.78 | N16: ='3. Data_Input_Sheet'!M26 -> 178874992 | R16: =V16-N16 -> 0 | V16: =IF(ISBLANK('3. Data_Input_Sheet'!U26),'5. Utility Income'!N16,'3. Data_Input_Sheet'!U26) -> 178874992
B17: 2 | D17: Other Revenue | E17: (1) | F17: =F48 -> 11722040.68 | J17: =N17-F17 -> -2550 | N17: =N48 -> 11719490.68 | R17: =V17-N17 -> 0 | V17: =V48 -> 11719490.68
F18: =SUM(F16:F17) -> 208120414.5 | J18: =SUM(J16:J17) -> -17525931.78 | N18: =SUM(N16:N17) -> 190594482.7 | R18: =SUM(R16:R17) -> 0 | V18: =SUM(V16:V17) -> 190594482.7
B19: 3 | D19: Total Operating Revenues
D21: Operating Expenses:
B22: 4 | D22: OM+A Expenses | F22: ='3. Data_Input_Sheet'!E36 -> 90624893.79 | J22: ='3. Data_Input_Sheet'!I36 -> -6539923.192 | N22: ='3. Data_Input_Sheet'!M36 -> 84084970.6 | R22: ='3. Data_Input_Sheet'!Q36 -> 0 | V22: ='3. Data_Input_Sheet'!U36 -> 84084970.6
B23: 5 | D23: Depreciation/Amortization | F23: ='3. Data_Input_Sheet'!E37 -> 47047408.89 | J23: ='3. Data_Input_Sheet'!I37 -> -659015.8889 | N23: ='3. Data_Input_Sheet'!M37 -> 46388393 | R23: ='3. Data_Input_Sheet'!Q37 -> 0 | V23: ='3. Data_Input_Sheet'!U37 -> 46388393
B24: 6 | D24: Property taxes | F24: ='3. Data_Input_Sheet'!E38 -> 2225543.581 | J24: ='3. Data_Input_Sheet'!I38 -> 0 | N24: ='3. Data_Input_Sheet'!M38 -> 2225543.581 | R24: ='3. Data_Input_Sheet'!Q38 -> 0 | V24: ='3. Data_Input_Sheet'!U38 -> 2225543.581
B25: 7 | D25: Capital taxes | F25: ='6. Taxes_PILs'!G25 -> 0 | J25: =N25-F25 -> 0 | N25: ='6. Taxes_PILs'!K25 -> 0 | R25: =V25-N25 -> 0 | V25: ='6. Taxes_PILs'!O25 -> 0
B26: 8 | D26: Other expense | F26: ='3. Data_Input_Sheet'!E40 -> 0 | J26: ='3. Data_Input_Sheet'!I40 -> 0 | N26: ='3. Data_Input_Sheet'!M40 ->  | R26: ='3. Data_Input_Sheet'!Q40 -> 0 | V26: ='3. Data_Input_Sheet'!U40 -> 
F27: =SUM(F22:F26) -> 139897846.3 | J27: =SUM(J22:J26) -> -7198939.081 | N27: =SUM(N22:N26) -> 132698907.2 | R27: =SUM(R22:R26) -> 0 | V27: =SUM(V22:V26) -> 132698907.2
B28: 9 | D28: Subtotal (lines 4 to 8)
B30: 10 | D30: Deemed Interest Expense | F30: ='7. Cost_of_Capital'!P19 -> 24193292.72 | J30: =N30-F30 -> -4751066.22 | N30: ='7. Cost_of_Capital'!P35 -> 19442226.5 | R30: =V30-N30 -> 2203252.726 | V30: ='7. Cost_of_Capital'!P51 -> 21645479.22
B32: 11 | D32: Total Expenses (lines 9 to 10) | F32: =F27+F30 -> 164091139 | J32: =J30+J27 -> -11950005.3 | N32: =N30+N27 -> 152141133.7 | R32: =R30+R27 -> 2203252.726 | V32: =V27+V30 -> 154344386.4
B34: 12 | D34: Utility income before income taxes | F34: =F18-(F32) -> 44029275.48 | J34: =J18-(J32) -> -5575926.477 | N34: =N18-(N32) -> 38453349.01 | R34: =R18-(R32) -> -2203252.726 | V34: =V18-(V32) -> 36250096.28
F35: ='6. Taxes_PILs'!G31 -> 6074211.167 | J35: =N35-F35 -> -1177196.201 | N35: ='6. Taxes_PILs'!K31 -> 4897014.966 | R35: =V35-N35 -> 0 | V35: =IF('6. Taxes_PILs'!O31=0,N35,'6. Taxes_PILs'!O31) -> 4897014.966
B36: 13 | D36: Income taxes (grossed-up)
F37: =F34-F35 -> 37955064.32 | J37: =J34-J35 -> -4398730.276 | N37: =N34-N35 -> 33556334.04 | R37: =R34-R35 -> -2203252.726 | V37: =V34-V35 -> 31353081.31
B38: 14 | D38: Utility net income
B42: Notes
B44: (1) | D44: Specific Service Charges | F44: ='3. Data_Input_Sheet'!E28 -> 6014982 | J44: ='3. Data_Input_Sheet'!I28 -> -2550 | N44: ='3. Data_Input_Sheet'!M28 -> 6012432 | R44: ='3. Data_Input_Sheet'!Q28 ->  | V44: =IF(ISBLANK('3. Data_Input_Sheet'!U28),N44,'3. Data_Input_Sheet'!U28) -> 6012432
D45: Late Payment Charges | F45: ='3. Data_Input_Sheet'!E29 -> 720000 | J45: ='3. Data_Input_Sheet'!I29 -> 0 | N45: ='3. Data_Input_Sheet'!M29 -> 720000 | R45: ='3. Data_Input_Sheet'!Q29 ->  | V45: =IF(ISBLANK('3. Data_Input_Sheet'!U29),N45,'3. Data_Input_Sheet'!U29) -> 720000
D46: Other Distribution Revenue | F46: ='3. Data_Input_Sheet'!E30 -> 1469736 | J46: ='3. Data_Input_Sheet'!I30 -> 0 | N46: ='3. Data_Input_Sheet'!M30 -> 1469736 | R46: ='3. Data_Input_Sheet'!Q30 ->  | V46: =IF(ISBLANK('3. Data_Input_Sheet'!U30),N46,'3. Data_Input_Sheet'!U30) -> 1469736
D47: Other Income and Deductions | F47: ='3. Data_Input_Sheet'!E31 -> 3517322.684 | J47: ='3. Data_Input_Sheet'!I31 -> 0 | N47: ='3. Data_Input_Sheet'!M31 -> 3517322.684 | R47: ='3. Data_Input_Sheet'!Q31 ->  | V47: =IF(ISBLANK('3. Data_Input_Sheet'!U31),N47,'3. Data_Input_Sheet'!U31) -> 3517322.684
F48: =SUM(F44:F47) -> 11722040.68 | J48: =SUM(J44:J47) -> -2550 | N48: =SUM(N44:N47) -> 11719490.68 | R48: =SUM(R44:R47) -> 0 | V48: =SUM(V44:V47) -> 11719490.68
D49: Total Revenue Offsets

Sheet 6. Taxes_PILs
B9: Taxes/PILs
B12: Line No. | D12: Particulars | G12: Application | K12: =IF(ISBLANK('3. Data_Input_Sheet'!M12),"",'3. Data_Input_Sheet'!M12) -> Settlement Agreement | O12: ='3. Data_Input_Sheet'!U12 -> Per Board Decision
D14: Determination of Taxable Income
B16: 1 | D16: Utility net income before taxes | G16: ='7. Cost_of_Capital'!P22 -> 37955064.48 | K16: ='7. Cost_of_Capital'!P38 -> 33556335.03 | O16: ='7. Cost_of_Capital'!P54 -> 33957988.66
B18: 2 | D18: Adjustments required to arrive at taxable utility income | G18: ='3. Data_Input_Sheet'!E44 -> -19959369.95 | K18: ='3. Data_Input_Sheet'!M44 -> -19474050 | O18: =IF(ISBLANK('3. Data_Input_Sheet'!U44),G18,'3. Data_Input_Sheet'!U44) -> -19959369.95
B20: 3 | D20: Taxable income | G20: =G16+G18 -> 17995694.53 | K20: =K16+K18 -> 14082285.03 | O20: =O16+O18 -> 13998618.7
D22: Calculation of Utility income Taxes
B24: 4 | D24: Income taxes | G24: ='3. Data_Input_Sheet'!E46 -> 4476359 | K24: =IF(ISBLANK('3. Data_Input_Sheet'!M46),'6. Taxes_PILs'!G24,'3. Data_Input_Sheet'!M46) -> 3599306 | O24: =IF(ISBLANK('3. Data_Input_Sheet'!U46),'6. Taxes_PILs'!K24,'3. Data_Input_Sheet'!U46) -> 3599306
B25: 5 | D25: Capital taxes | G25: ='3. Data_Input_Sheet'!E48 -> 0 | K25: =IF(ISBLANK('3. Data_Input_Sheet'!M48),'6. Taxes_PILs'!G25,'3. Data_Input_Sheet'!M48) -> 0 | O25: =IF(ISBLANK('3. Data_Input_Sheet'!U48),'6. Taxes_PILs'!K25,'3. Data_Input_Sheet'!U48) -> 0
G26: =SUM(G24:G25) -> 4476359 | K26: =SUM(K24:K25) -> 3599306 | O26: =SUM(O24:O25) -> 3599306
B27: 6 | D27: Total taxes
B29: 7 | D29: Gross-up of Income Taxes | G29: =(G24/(1-G41))-G24 -> 1597852.167 | K29: =(K24/(1-K41))-K24 -> 1297708.966 | O29: =(O24/(1-O41))-O24 -> 1297708.966
B31: 8 | D31: Grossed-up Income Taxes | G31: =G24+G29 -> 6074211.167 | K31: =K24+K29 -> 4897014.966 | O31: =O24+O29 -> 4897014.966
B33: 9 | D33: PILs / tax Allowance (Grossed-up Income taxes + Capital taxes) | G33: =G26+G29 -> 6074211.167 | K33: =K29+K26 -> 4897014.966 | O33: =O29+O26 -> 4897014.966
B35: 10 | D35: Other tax Credits | G35: ='3. Data_Input_Sheet'!E51 -> -257500 | K35: =IF(ISBLANK('3. Data_Input_Sheet'!M51),G35,'3. Data_Input_Sheet'!M51) -> -132500 | O35: =IF(ISBLANK('3. Data_Input_Sheet'!U51),K35,'3. Data_Input_Sheet'!U51) -> -132500
D37: Tax Rates
B39: 11 | D39: Federal tax (%) | G39: ='3. Data_Input_Sheet'!E49 -> 0.15 | K39: =IF(ISBLANK('3. Data_Input_Sheet'!M49),G39,'3. Data_Input_Sheet'!M49) -> 0.15 | O39: =IF(ISBLANK('3. Data_Input_Sheet'!U49),K39,'3. Data_Input_Sheet'!U49) -> 0.15
B40: 12 | D40: Provincial tax (%) | G40: ='3. Data_Input_Sheet'!E50 -> 0.1130550903 | K40: =IF(ISBLANK('3. Data_Input_Sheet'!M50),G40,'3. Data_Input_Sheet'!M50) -> 0.115 | O40: =IF(ISBLANK('3. Data_Input_Sheet'!U50),K40,'3. Data_Input_Sheet'!U50) -> 0.115
B41: 13 | D41: Total tax rate (%) | G41: =G39+G40 -> 0.2630550903 | K41: =K39+K40 -> 0.265 | O41: =O39+O40 -> 0.265
B44: Notes
D45: Capital Taxes not applicable after July 1, 2010 (i.e. for 2011 and later test years)

Sheet 7. Cost_of_Capital
B5: Capitalization/Cost of Capital
B11: Line No. | D11: Particulars | F11: Capitalization Ratio | L11: Cost Rate | P11: Return
F13: Initial Application
F15: (%) | J15: ($) | L15: (%) | P15: ($)
D16: Debt
B17: 1 | D17: Long-term Debt | F17: ='3. Data_Input_Sheet'!E55 -> 0.56 | J17: =$J$26*F17 -> 571366562.1 | L17: ='3. Data_Input_Sheet'!E62 -> 0.0408 | P17: =L17*J17 -> 23311755.73
B18: 2 | D18: Short-term Debt | F18: ='3. Data_Input_Sheet'!E56 -> 0.04 | J18: =$J$26*F18 -> 40811897.29 | L18: ='3. Data_Input_Sheet'!E63 -> 0.0216 | P18: =L18*J18 -> 881536.9816
B19: 3 | D19: Total Debt | F19: =SUM(F17:F18) -> 0.6 | J19: =SUM(J17:J18) -> 612178459.4 | L19: =IF(F19=0,0,SUMPRODUCT(F17:F18,L17:L18)/F19) -> 0.03952 | P19: =SUM(P17:P18) -> 24193292.72
D21: Equity
B22: 4 | D22: Common Equity | F22: ='3. Data_Input_Sheet'!E57 -> 0.4 | J22: =$J$26*F22 -> 408118972.9 | L22: ='3. Data_Input_Sheet'!E64 -> 0.093 | P22: =L22*J22 -> 37955064.48
B23: 5 | D23: Preferred Shares | F23: ='3. Data_Input_Sheet'!E58 -> 0 | J23: =$J$26*F23 -> 0 | L23: ='3. Data_Input_Sheet'!E65 -> 0 | P23: =L23*J23 -> 0
B24: 6 | D24: Total Equity | F24: =SUM(F22:F23) -> 0.4 | J24: =SUM(J22:J23) -> 408118972.9 | L24: =IF(F24=0,0,SUMPRODUCT(F22:F23,L22:L23)/F24) -> 0.093 | P24: =SUM(P22:P23) -> 37955064.48
B26: 7 | D26: Total | F26: =SUM(F19,F24) -> 1 | J26: ='4. Rate_Base'!G18 -> 1020297432 | L26: =(L19*F19)+(L24*F24) -> 0.060912 | P26: =P19+P24 -> 62148357.2
F29: ='1. Info'!AC1 -> Settlement Agreement
F31: (%) | J31: ($) | L31: (%) | P31: ($)
D32: Debt
B33: 1 | D33: Long-term Debt | F33: ='3. Data_Input_Sheet'!M55 -> 0.56 | J33: =$J$42*F33 -> 511195528.2 | L33: ='3. Data_Input_Sheet'!M62 -> 0.03649 | P33: =L33*J33 -> 18653524.82
B34: 2 | D34: Short-term Debt | F34: ='3. Data_Input_Sheet'!M56 -> 0.04 | J34: =$J$42*F34 -> 36513966.3 | L34: ='3. Data_Input_Sheet'!M63 -> 0.0216 | P34: =L34*J34 -> 788701.6721
B35: 3 | D35: Total Debt | F35: =SUM(F33:F34) -> 0.6 | J35: =SUM(J33:J34) -> 547709494.5 | L35: =IF(F35=0,0,SUMPRODUCT(F33:F34,L33:L34)/F35) -> 0.03549733333 | P35: =SUM(P33:P34) -> 19442226.5
D37: Equity
B38: 4 | D38: Common Equity | F38: ='3. Data_Input_Sheet'!M57 -> 0.4 | J38: =$J$42*F38 -> 365139663 | L38: ='3. Data_Input_Sheet'!M64 -> 0.0919 | P38: =L38*J38 -> 33556335.03
B39: 5 | D39: Preferred Shares | F39: ='3. Data_Input_Sheet'!M58 -> 0 | J39: =$J$42*F39 -> 0 | L39: ='3. Data_Input_Sheet'!M65 -> 0 | P39: =L39*J39 -> 0
B40: 6 | D40: Total Equity | F40: =SUM(F38:F39) -> 0.4 | J40: =SUM(J38:J39) -> 365139663 | L40: =IF(F40=0,0,SUMPRODUCT(F38:F39,L38:L39)/F40) -> 0.0919 | P40: =SUM(P38:P39) -> 33556335.03
B42: 7 | D42: Total | F42: =F35+F40 -> 1 | J42: ='4. Rate_Base'!O18 -> 912849157.5 | L42: =(L35*F35)+(L40*F40) -> 0.0580584 | P42: =P35+P40 -> 52998561.52
F45: Per Board Decision
F47: (%) | J47: ($) | L47: (%) | P47: ($)
D48: Debt
B49: 8 | D49: Long-term Debt | F49: =IF(ISBLANK('3. Data_Input_Sheet'!U55),F33,'3. Data_Input_Sheet'!U55) -> 0.56 | J49: =$J$58*F49 -> 511195528.2 | L49: =IF(ISBLANK('3. Data_Input_Sheet'!U62),L17,'3. Data_Input_Sheet'!U62) -> 0.0408 | P49: =L49*J49 -> 20856777.55
B50: 9 | D50: Short-term Debt | F50: =IF(ISBLANK('3. Data_Input_Sheet'!U56),F34,'3. Data_Input_Sheet'!U56) -> 0.04 | J50: =$J$58*F50 -> 36513966.3 | L50: =IF(ISBLANK('3. Data_Input_Sheet'!U63),L18,'3. Data_Input_Sheet'!U63) -> 0.0216 | P50: =L50*J50 -> 788701.6721
B51: 10 | D51: Total Debt | F51: =SUM(F49:F50) -> 0.6 | J51: =SUM(J49:J50) -> 547709494.5 | L51: =IF(F51=0,0,SUMPRODUCT(F49:F50,L49:L50)/F51) -> 0.03952 | P51: =SUM(P49:P50) -> 21645479.22
D53: Equity
B54: 11 | D54: Common Equity | F54: =IF(ISBLANK('3. Data_Input_Sheet'!U57),F38,'3. Data_Input_Sheet'!U57) -> 0.4 | J54: =$J$58*F54 -> 365139663 | L54: =IF(ISBLANK('3. Data_Input_Sheet'!U64),L22,'3. Data_Input_Sheet'!U64) -> 0.093 | P54: =L54*J54 -> 33957988.66
B55: 12 | D55: Preferred Shares | F55: =IF(ISBLANK('3. Data_Input_Sheet'!U58),F39,'3. Data_Input_Sheet'!U58) -> 0 | J55: =$J$58*F55 -> 0 | L55: =IF(ISBLANK('3. Data_Input_Sheet'!U65),L23,'3. Data_Input_Sheet'!U65) -> 0 | P55: =L55*J55 -> 0
B56: 13 | D56: Total Equity | F56: =SUM(F54:F55) -> 0.4 | J56: =SUM(J54:J55) -> 365139663 | L56: =IF(F56=0,0,SUMPRODUCT(F54:F55,L54:L55)/F56) -> 0.093 | P56: =SUM(P54:P55) -> 33957988.66
B58: 14 | D58: Total | F58: =F51+F56 -> 1 | J58: ='4. Rate_Base'!W18 -> 912849157.5 | L58: =(L51*F51)+(L56*F56) -> 0.060912 | P58: =P51+P56 -> 55603467.88
B61: Notes
B62: (1) | D62: ='3. Data_Input_Sheet'!C71 -> Data in column E is for Application as originally filed. For updated revenue requirement as a result of interrogatory responses, technical or settlement conferences, etc., use colimn M and Adjustments in column I

Sheet 8. Rev_Def_Suff
P1: =CONCATENATE('2. Table of Contents'!$F$6," ",'2. Table of Contents'!$G$6) -> 
B10: Revenue Deficiency/Sufficiency
F13: Initial Application | J13: =IF(ISBLANK('3. Data_Input_Sheet'!M12),"",'3. Data_Input_Sheet'!M12) -> Settlement Agreement | N13: ='3. Data_Input_Sheet'!U12 -> Per Board Decision
B15: Line No. | D15: Particulars | F15: At Current Approved Rates | H15: At Proposed Rates | J15: At Current Approved Rates | L15: At Proposed Rates | N15: At Current Approved Rates | P15: At Proposed Rates
B19: 1 | D19: Revenue Deficiency from Below | H19: =F52 -> 38088496.71 | L19: =J52 -> 20562947.35 | P19: =N52 -> 23312667.6
B20: 2 | D20: Distribution Revenue | F20: ='3. Data_Input_Sheet'!E25 -> 158309877.3 | H20: ='3. Data_Input_Sheet'!E26-H19 -> 158309877.1 | J20: =IF(ISBLANK('3. Data_Input_Sheet'!M25),'3. Data_Input_Sheet'!E25,'3. Data_Input_Sheet'!M25) -> 158312045 | L20: =IF(ISBLANK('3. Data_Input_Sheet'!M26),'3. Data_Input_Sheet'!E26-L19,'3. Data_Input_Sheet'!M26-L19) -> 158312044.6 | N20: =IF(ISBLANK('3. Data_Input_Sheet'!U25),'3. Data_Input_Sheet'!M25,'3. Data_Input_Sheet'!U25) -> 158312045 | P20: =IF(ISBLANK('3. Data_Input_Sheet'!U26),'3. Data_Input_Sheet'!M26-P19,'3. Data_Input_Sheet'!U26-P19) -> 155562324.4
B21: 3 | D21: Other Operating Revenue Offsets - net | F21: ='5. Utility Income'!F48 -> 11722040.68 | H21: ='5. Utility Income'!F48 -> 11722040.68 | J21: ='5. Utility Income'!N48 -> 11719490.68 | L21: =J21 -> 11719490.68 | N21: ='5. Utility Income'!V48 -> 11719490.68 | P21: ='5. Utility Income'!V48 -> 11719490.68
B22: 4 | D22: Total Revenue | F22: =SUM(F20:F21) -> 170031918 | H22: =SUM(H19:H21) -> 208120414.5 | J22: =SUM(J20:J21) -> 170031535.7 | L22: =SUM(L19:L21) -> 190594482.7 | N22: =SUM(N20:N21) -> 170031535.7 | P22: =SUM(P19:P21) -> 190594482.7
B24: 5 | D24: Operating Expenses | F24: ='5. Utility Income'!F27 -> 139897846.3 | H24: ='5. Utility Income'!F27 -> 139897846.3 | J24: ='5. Utility Income'!N27 -> 132698907.2 | L24: ='5. Utility Income'!N27 -> 132698907.2 | N24: ='5. Utility Income'!V27 -> 132698907.2 | P24: ='5. Utility Income'!V27 -> 132698907.2
B25: 6 | D25: Deemed Interest Expense | F25: ='5. Utility Income'!F30 -> 24193292.72 | H25: ='5. Utility Income'!F30 -> 24193292.72 | J25: ='5. Utility Income'!N30 -> 19442226.5 | L25: ='5. Utility Income'!N30 -> 19442226.5 | N25: ='5. Utility Income'!V30 -> 21645479.22 | P25: ='5. Utility Income'!V30 -> 21645479.22
B26: 8 | D26: Total Cost and Expenses | F26: =SUM(F24:F25) -> 164091139 | H26: =SUM(H24:H25) -> 164091139 | J26: =SUM(J24:J25) -> 152141133.7 | L26: =SUM(L24:L25) -> 152141133.7 | N26: =SUM(N24:N25) -> 154344386.4 | P26: =SUM(P24:P25) -> 154344386.4
B28: 9 | D28: Utility Income Before Income Taxes | F28: =F22-F26 -> 5940779.005 | H28: =H22-H26 -> 44029275.48 | J28: =J22-J26 -> 17890402.01 | L28: =L22-L26 -> 38453349.01 | N28: =N22-N26 -> 15687149.28 | P28: =P22-P26 -> 36250096.28
B30: 10 | D30: Tax Adjustments to Accounting Income per 2013 PILs model | F30: ='3. Data_Input_Sheet'!E44 -> -19959369.95 | H30: ='3. Data_Input_Sheet'!E44 -> -19959369.95 | J30: =IF(ISBLANK('3. Data_Input_Sheet'!M44),'3. Data_Input_Sheet'!E44,'3. Data_Input_Sheet'!M44) -> -19474050 | L30: =IF(ISBLANK('3. Data_Input_Sheet'!M44),'3. Data_Input_Sheet'!E44,'3. Data_Input_Sheet'!M44) -> -19474050 | N30: =IF(ISBLANK('3. Data_Input_Sheet'!U44),'3. Data_Input_Sheet'!M44,'3. Data_Input_Sheet'!U44) -> -19474050 | P30: =IF(ISBLANK('3. Data_Input_Sheet'!U44),'3. Data_Input_Sheet'!M44,'3. Data_Input_Sheet'!U44) -> -19474050
B31: 11 | D31: Taxable Income | F31: =SUM(F28:F30) -> -14018590.95 | H31: =SUM(H28:H30) -> 24069905.53 | J31: =SUM(J28+J30) -> -1583647.994 | L31: =L28+L30 -> 18979299.01 | N31: =SUM(N28+N30) -> -3786900.72 | P31: =P28+P30 -> 16776046.28
B33: 12 | D33: Income Tax Rate | F33: ='6. Taxes_PILs'!G41 -> 0.2630550903 | H33: ='6. Taxes_PILs'!G41 -> 0.2630550903 | J33: ='6. Taxes_PILs'!K41 -> 0.265 | L33: ='6. Taxes_PILs'!K41 -> 0.265 | N33: ='6. Taxes_PILs'!O41 -> 0.265 | P33: ='6. Taxes_PILs'!O41 -> 0.265
B34: 13 | D34: Income Tax on Taxable Income | F34: =F31*F33 -> -3687661.709 | H34: =H31*H33 -> 6331711.174 | J34: =J31*J33 -> -419666.7183 | L34: =L31*L33 -> 5029514.237 | N34: =N31*N33 -> -1003528.691 | P34: =P31*P33 -> 4445652.264
B35: 14 | D35: Income Tax Credits | F35: ='3. Data_Input_Sheet'!E51 -> -257500 | H35: ='3. Data_Input_Sheet'!E51 -> -257500 | J35: =IF(ISBLANK('3. Data_Input_Sheet'!M51),'3. Data_Input_Sheet'!E51,'3. Data_Input_Sheet'!M51) -> -132500 | L35: =IF(ISBLANK('3. Data_Input_Sheet'!M51),'3. Data_Input_Sheet'!E51,'3. Data_Input_Sheet'!M51) -> -132500 | N35: =IF(ISBLANK('3. Data_Input_Sheet'!U51),'3. Data_Input_Sheet'!M51,'3. Data_Input_Sheet'!U51) -> -132500 | P35: =IF(ISBLANK('3. Data_Input_Sheet'!U51),'3. Data_Input_Sheet'!M51,'3. Data_Input_Sheet'!U51) -> -132500
B36: 15 | D36: Utility Net Income | F36: =F28-SUM(F34:F35) -> 9885940.714 | H36: ='5. Utility Income'!F37 -> 37955064.32 | J36: =J28-SUM(J34:J35) -> 18442568.72 | L36: ='5. Utility Income'!N37 -> 33556334.04 | N36: =N28-SUM(N34:N35) -> 16823177.97 | P36: ='5. Utility Income'!V37 -> 31353081.31
B38: 16 | D38: Utility Rate Base | F38: ='4. Rate_Base'!G18 -> 1020297432 | H38: ='4. Rate_Base'!G18 -> 1020297432 | J38: ='4. Rate_Base'!O18 -> 912849157.5 | L38: ='4. Rate_Base'!O18 -> 912849157.5 | N38: ='4. Rate_Base'!W18 -> 912849157.5 | P38: ='4. Rate_Base'!W18 -> 912849157.5
B40: 17 | D40: Deemed Equity Portion of Rate Base | F40: ='7. Cost_of_Capital'!J24 -> 408118972.9 | H40: =F40 -> 408118972.9 | J40: ='7. Cost_of_Capital'!J40 -> 365139663 | L40: =J40 -> 365139663 | N40: ='7. Cost_of_Capital'!J56 -> 365139663 | P40: =N40 -> 365139663
B42: 18 | D42: Income/(Equity Portion of Rate Base) | F42: =IF(F40=0,0,F36/F40) -> 0.02422318336 | H42: =IF(H40=0,0,H36/H40) -> 0.09299999959 | J42: =IF(J40=0,0,J36/J40) -> 0.05050825915 | L42: =IF(L40=0,0,L36/L40) -> 0.09189999729 | N42: =IF(N40=0,0,N36/N40) -> 0.04607326915 | P42: =IF(P40=0,0,P36/P40) -> 0.08586599729
B43: 19 | D43: Target Return - Equity on Rate Base | F43: ='7. Cost_of_Capital'!L24 -> 0.093 | H43: ='7. Cost_of_Capital'!L24 -> 0.093 | J43: ='7. Cost_of_Capital'!L40 -> 0.0919 | L43: ='7. Cost_of_Capital'!L40 -> 0.0919 | N43: ='7. Cost_of_Capital'!L56 -> 0.093 | P43: ='7. Cost_of_Capital'!L56 -> 0.093
B44: 20 | D44: Deficiency/Sufficiency in Return on Equity | F44: =F42-F43 -> -0.06877681664 | H44: =H42-H43 -> -4.102389817e-10 | J44: =J42-J43 -> -0.04139174085 | L44: =L42-L43 -> -2.706985705e-09 | N44: =N42-N43 -> -0.04692673085 | P44: =P42-P43 -> -0.007134002707
B46: 21 | D46: Indicated Rate of Return | F46: =IF(F38=0,0,(F36+F25)/F38) -> 0.03340127334 | H46: =IF(H38=0,0,(H36+H25)/H38) -> 0.06091199984 | J46: =IF(J38=0,0,(J36+J25)/J38) -> 0.04150170366 | L46: =IF(L40=0,0,(L36+L25)/L38) -> 0.05805839892 | N46: =IF(N38=0,0,(N36+N25)/N38) -> 0.04214130766 | P46: =IF(P40=0,0,(P36+P25)/P38) -> 0.05805839892
B47: 22 | D47: Requested Rate of Return on Rate Base | F47: ='7. Cost_of_Capital'!L26 -> 0.060912 | H47: ='7. Cost_of_Capital'!L26 -> 0.060912 | J47: ='7. Cost_of_Capital'!L42 -> 0.0580584 | L47: ='7. Cost_of_Capital'!L42 -> 0.0580584 | N47: ='7. Cost_of_Capital'!L58 -> 0.060912 | P47: ='7. Cost_of_Capital'!L58 -> 0.060912
B48: 23 | D48: Deficiency/Sufficiency in Rate of Return | F48: =F46-F47 -> -0.02751072666 | H48: =H46-H47 -> -1.640955913e-10 | J48: =J46-J47 -> -0.01655669634 | L48: =L46-L47 -> -1.082794292e-09 | N48: =N46-N47 -> -0.01877069234 | P48: =P46-P47 -> -0.002853601083
B50: 24 | D50: Target Return on Equity | F50: =H50 -> 37955064.48 | H50: ='7. Cost_of_Capital'!P24 -> 37955064.48 | J50: =L50 -> 33556335.03 | L50: ='7. Cost_of_Capital'!P40 -> 33556335.03 | N50: =P50 -> 33957988.66 | P50: ='7. Cost_of_Capital'!P56 -> 33957988.66
B51: 25 | D51: Revenue Deficiency/(Sufficiency) | F51: =F50-F36 -> 28069123.77 | H51: =H38*H48 -> -0.1674263104 | J51: =J50-J36 -> 15113766.3 | L51: =L38*L48 -> -0.9884278569 | N51: =N50-N36 -> 17134810.69 | P51: =P38*P48 -> -2604907.344
B52: 26 | D52: Gross Revenue Deficiency/(Sufficiency) | F52: =F51/(1-F33) -> 38088496.71 | G52: (1) | J52: =J51/(1-J33) -> 20562947.35 | K52: (1) | N52: =N51/(1-N33) -> 23312667.6 | O52: (1)
B55: Notes:
B56: (1) | D56: Revenue Deficiency/Sufficiency divided by (1 - Tax Rate)

Sheet 9. Rev_Reqt
B11: Revenue Requirement
B13: Line No. | D13: Particulars | F13: Application | J13: =IF(ISBLANK('3. Data_Input_Sheet'!M12),"",'3. Data_Input_Sheet'!M12) -> Settlement Agreement | N13: ='3. Data_Input_Sheet'!U12 -> Per Board Decision
B15: 1 | D15: OM&A Expenses | F15: ='5. Utility Income'!F22 -> 90624893.79 | J15: ='5. Utility Income'!N22 -> 84084970.6 | N15: ='5. Utility Income'!V22 -> 84084970.6
B16: 2 | D16: Amortization/Depreciation | F16: ='5. Utility Income'!F23 -> 47047408.89 | J16: ='5. Utility Income'!N23 -> 46388393 | N16: ='5. Utility Income'!V23 -> 46388393
B17: 3 | D17: Property Taxes | F17: ='5. Utility Income'!F24 -> 2225543.581 | J17: ='5. Utility Income'!N24 -> 2225543.581 | N17: ='5. Utility Income'!V24 -> 2225543.581
B18: 4 | D18: Capital Taxes | F18: ='6. Taxes_PILs'!G25 -> 0 | J18: ='6. Taxes_PILs'!K25 -> 0 | N18: ='6. Taxes_PILs'!O25 -> 0
B19: 5 | D19: Income Taxes (Grossed up) | F19: ='6. Taxes_PILs'!G33-F18 -> 6074211.167 | J19: ='6. Taxes_PILs'!K33-J18 -> 4897014.966 | N19: ='6. Taxes_PILs'!O33-N18 -> 4897014.966
B20: 6 | D20: Other Expenses | F20: ='5. Utility Income'!F26 -> 0 | J20: ='5. Utility Income'!N26 ->  | N20: ='5. Utility Income'!V26 -> 
B21: 7 | D21: Return
D22: Deemed Interest Expense | F22: ='8. Rev_Def_Suff'!F25 -> 24193292.72 | J22: ='8. Rev_Def_Suff'!L25 -> 19442226.5 | N22: ='8. Rev_Def_Suff'!P25 -> 21645479.22
D23: Return on Deemed Equity | F23: ='8. Rev_Def_Suff'!F50 -> 37955064.48 | J23: ='8. Rev_Def_Suff'!L50 -> 33556335.03 | N23: ='8. Rev_Def_Suff'!P50 -> 33957988.66
B25: 8 | D25: Service Revenue Requirement (before Revenues) | F25: =SUM(F15:F23) -> 208120414.6 | J25: =SUM(J15:J23) -> 190594483.7 | N25: =SUM(N15:O23) -> 193199390
B27: 9 | D27: Revenue Offsets | F27: ='3. Data_Input_Sheet'!E33 -> 11722040.68 | J27: ='3. Data_Input_Sheet'!M33 -> 11719490.68 | N27: ='3. Data_Input_Sheet'!U33 -> 0
B28: 10 | D28: Base Revenue Requirement | F28: =F25-F27 -> 196398373.9 | J28: =J25-J27 -> 178874993 | N28: =N25-N27 -> 193199390
D29: (excluding Tranformer Owership Allowance credit adjustment)
B31: 11 | D31: Distribution revenue | F31: ='5. Utility Income'!F16 -> 196398373.8 | H31: 2 | J31: ='5. Utility Income'!N16 -> 178874992 | L31: 3 | N31: ='5. Utility Income'!V16 -> 178874992
B32: 12 | D32: Other revenue | F32: ='5. Utility Income'!F17 -> 11722040.68 | J32: ='5. Utility Income'!N17 -> 11719490.68 | N32: ='5. Utility Income'!V17 -> 11719490.68
F33: =SUM(F31:F32) -> 208120414.5 | J33: =SUM(J31:J32) -> 190594482.7 | N33: =SUM(N31:N32) -> 190594482.7
B34: 13 | D34: Total revenue
F35: =F33-F25 -> -0.1674262881 | J35: =J33-J25 -> -0.9884278476 | N35: =N33-N25 -> -2604907.344
B36: 14 | D36: Difference (Total Revenue Less Distribution Revenue Requirement before Revenues) | H36: (1) | L36: (1) | Q36: (1)
B38: Notes
B39: (1) | D39: Line 11 - Line 8
B40: 2 | D40: Distribution Revenue not including Transformer Ownership Allowance, Total Revenue Requirement is $197,507,477
B41: 3 | D41: Distribution Revenue not including Transformer Ownership Allowance, Total Revenue Requirement is $179,984,095

Sheet 10. Tracking_Sheet
B14: Tracking Form
B15: The last row shown is the most current estimate of the cost of service data reflecting the original application and any updates provided by the applicant distributor (for updated evidence, responses to interrogatories, undertakings, etc.) Please ensure a Reference (Column B) and/or Item Description (Column C) is entered. Please note that unused rows will automatically be hidden and the PRINT AREA set when the PRINT BUTTON on Sheet 1 is activated. (1) Short reference to evidence material (interrogatory response, undertaking, exhibit number, Board Decision, Code, Guideline, Report of the Board, etc.) (2) Short description of change, issue, etc. 60 Tracking Rows have been provided below. If you require more, please contact Industry Relations @ IndustryRelations@ontarioenergyboard.ca.
B16: Summary of Proposed Changes
D18: Cost of Capital | F18: Rate Base and Capital Expenditures | I18: Operating Expenses | L18: Revenue Requirement
B19: Reference (1) | C19: Item / Description (2) | D19: Regulated Return on Capital | E19: Regulated Rate of Return | F19: Rate Base | G19: Working Capital | H19: Working Capital Allowance ($) | I19: Amortization / Depreciation | J19: Taxes/PILs | K19: OM&A | L19: Service Revenue Requirement | M19: Other Revenues | N19: Base Revenue Requirement | O19: Grossed up Revenue Deficiency / Sufficiency
C21: Original Application | D21: ='7. Cost_of_Capital'!P26 -> 62148357.2 | E21: ='7. Cost_of_Capital'!L26 -> 0.060912 | F21: ='4. Rate_Base'!G18 -> 1020297432 | G21: ='4. Rate_Base'!G26 -> 1040409211 | H21: ='4. Rate_Base'!G30 -> 147738107.9 | I21: ='9. Rev_Reqt'!F16 -> 47047408.89 | J21: ='9. Rev_Reqt'!F19 -> 6074211.167 | K21: ='9. Rev_Reqt'!F15 -> 90624893.79 | L21: ='9. Rev_Reqt'!F25 -> 208120414.6 | M21: ='9. Rev_Reqt'!F32 -> 11722040.68 | N21: ='9. Rev_Reqt'!F28 -> 196398373.9 | O21: ='8. Rev_Def_Suff'!F52 -> 38088496.71
A23: 1 | B23: 2018 Year | D23: 62148357.2 | E23: 0.060912 | F23: 1020297432 | G23: 1040409211 | H23: 147738107.9 | I23: 47047408.89 | J23: 6074211.167 | K23: 90624893.79 | L23: 208120414.6 | M23: 11722040.68 | N23: 196398373.9 | O23: 38088496.71 | Q23: =IF(AND(ISBLANK(B23), ISBLANK(C23)), "X", "") -> 
C24: Change | D24: =IF(D23="","",D23-D21) -> 0 | E24: =IF(E23="","",E23-E21) -> 0 | F24: 0 | G24: 0 | H24: 0 | I24: 0 | J24: 0 | K24: 0 | L24: 0 | M24: 0 | N24: 0 | O24: 0
A26: 2 | B26: Exhibit B-2-1, D-4-1 and F-1-1, IR OEB#1 and EP#38 | C26: See note 12, 13 & 14 on Data_Input_Sheet, Update 2014 Actual Capital, Sentinel Lights Correction and PILs Update | D26: 62076554.99 | E26: 0.0609 | F26: 1019118646 | G26: 1040409211 | H26: 147738108 | I26: 46943424 | J26: 6154952 | K26: 90624893.79 | L26: 208025368 | M26: 11722041 | N26: 196303327 | O26: 37991282 | Q26: =IF(AND(ISBLANK(B26), ISBLANK(C26)), "X", "") -> 
C27: Change | D27: =IF(D26="","",D26-D24) -> 62076554.99 | E27: 0.0609 | F27: 1019118646 | G27: 1040409211 | H27: 147738108 | I27: 46943424 | J27: 6154952 | K27: 90624893.79 | L27: 208025368 | M27: 11722041 | N27: 196303327 | O27: 37991282
A29: 3 | B29: Amended Settlement Agreement | C29: See data Input Sheet for Notes | D29: =+'7. Cost_of_Capital'!P42 -> 52998561.52 | E29: =+'7. Cost_of_Capital'!L42 -> 0.0580584 | F29: 912849157 | G29: =+'4. Rate_Base'!O26 -> 1033869288 | H29: =+'4. Rate_Base'!O30 -> 81882447.58 | I29: =+'9. Rev_Reqt'!J16 -> 46388393 | J29: =+'9. Rev_Reqt'!J19 -> 4897014.966 | K29: =+'9. Rev_Reqt'!J15 -> 84084970.6 | L29: =+'9. Rev_Reqt'!J28+'9. Rev_Reqt'!J27 -> 190594483.7 | M29: =+'9. Rev_Reqt'!J27 -> 11719490.68 | N29: =+'9. Rev_Reqt'!J31 -> 178874992 | O29: =+'8. Rev_Def_Suff'!J52 -> 20562947.35 | Q29: =IF(AND(ISBLANK(B29), ISBLANK(C29)), "X", "") -> 
C30: Change | D30: =IF(D29="","",D29-D27) -> -9077993.466 | E30: -0.0028416 | F30: -106269489 | G30: -6539923.426 | H30: -65855660.42 | I30: -555031 | J30: -1257937.034 | K30: -6539923.192 | L30: -17430884.33 | M30: -2550.3163 | N30: -17428335 | O30: -17428334.65
A32: 4 | Q32: =IF(AND(ISBLANK(B32), ISBLANK(C32)), "X", "") -> X
C33: Change | D33: =IF(D32="","",D32-D30) -> 
A35: 5 | Q35: =IF(AND(ISBLANK(B35), ISBLANK(C35)), "X", "") -> X
C36: Change | D36: =IF(D35="","",D35-D33) -> 
A38: 6 | Q38: =IF(AND(ISBLANK(B38), ISBLANK(C38)), "X", "") -> X
C39: Change | D39: =IF(D38="","",D38-D36) -> 
A41: 7 | Q41: =IF(AND(ISBLANK(B41), ISBLANK(C41)), "X", "") -> X
C42: Change | D42: =IF(D41="","",D41-D39) -> 
A44: 8 | Q44: =IF(AND(ISBLANK(B44), ISBLANK(C44)), "X", "") -> X
C45: Change | D45: =IF(D44="","",D44-D42) -> 
A47: 9 | Q47: =IF(AND(ISBLANK(B47), ISBLANK(C47)), "X", "") -> X
C48: Change | D48: =IF(D47="","",D47-D45) -> 
A50: 10 | Q50: =IF(AND(ISBLANK(B50), ISBLANK(C50)), "X", "") -> X
C51: Change | D51: =IF(D50="","",D50-D48) -> 
A53: 11 | Q53: =IF(AND(ISBLANK(B53), ISBLANK(C53)), "X", "") -> X
C54: Change | D54: =IF(D53="","",D53-D51) -> 
A56: 12 | Q56: =IF(AND(ISBLANK(B56), ISBLANK(C56)), "X", "") -> X
C57: Change | D57: =IF(D56="","",D56-D54) -> 
A59: 13 | Q59: =IF(AND(ISBLANK(B59), ISBLANK(C59)), "X", "") -> X
C60: Change | D60: =IF(D59="","",D59-D57) -> 
A62: 14 | Q62: =IF(AND(ISBLANK(B62), ISBLANK(C62)), "X", "") -> X
C63: Change | D63: =IF(D62="","",D62-D60) -> 
A65: 15 | Q65: =IF(AND(ISBLANK(B65), ISBLANK(C65)), "X", "") -> X
C66: Change | D66: =IF(D65="","",D65-D63) -> 
A68: 16 | Q68: =IF(AND(ISBLANK(B68), ISBLANK(C68)), "X", "") -> X
C69: Change | D69: =IF(D68="","",D68-D66) -> 
A71: 17 | Q71: =IF(AND(ISBLANK(B71), ISBLANK(C71)), "X", "") -> X
C72: Change | D72: =IF(D71="","",D71-D69) -> 
A74: 18 | Q74: =IF(AND(ISBLANK(B74), ISBLANK(C74)), "X", "") -> X
C75: Change | D75: =IF(D74="","",D74-D72) -> 
R76: Page Break 1
A77: 19 | Q77: =IF(AND(ISBLANK(B77), ISBLANK(C77)), "X", "") -> X
C78: Change | D78: =IF(D77="","",D77-D75) -> 
A80: 20 | Q80: =IF(AND(ISBLANK(B80), ISBLANK(C80)), "X", "") -> X
C81: Change | D81: =IF(D80="","",D80-D78) -> 
A83: 21 | Q83: =IF(AND(ISBLANK(B83), ISBLANK(C83)), "X", "") -> X
C84: Change | D84: =IF(D83="","",D83-D81) -> 
A86: 22 | Q86: =IF(AND(ISBLANK(B86), ISBLANK(C86)), "X", "") -> X
C87: Change | D87: =IF(D86="","",D86-D84) -> 
A89: 23 | Q89: =IF(AND(ISBLANK(B89), ISBLANK(C89)), "X", "") -> X
C90: Change | D90: =IF(D89="","",D89-D87) -> 
A92: 24 | Q92: =IF(AND(ISBLANK(B92), ISBLANK(C92)), "X", "") -> X
C93: Change | D93: =IF(D92="","",D92-D90) -> 
A95: 25 | Q95: =IF(AND(ISBLANK(B95), ISBLANK(C95)), "X", "") -> X
C96: Change | D96: =IF(D95="","",D95-D93) -> 
A98: 26 | Q98: =IF(AND(ISBLANK(B98), ISBLANK(C98)), "X", "") -> X
C99: Change | D99: =IF(D98="","",D98-D96) -> 
A101: 27 | Q101: =IF(AND(ISBLANK(B101), ISBLANK(C101)), "X", "") -> X
C102: Change | D102: =IF(D101="","",D101-D99) -> 
A104: 28 | Q104: =IF(AND(ISBLANK(B104), ISBLANK(C104)), "X", "") -> X
C105: Change | D105: =IF(D104="","",D104-D102) -> 
A107: 29 | Q107: =IF(AND(ISBLANK(B107), ISBLANK(C107)), "X", "") -> X
C108: Change | D108: =IF(D107="","",D107-D105) -> 
A110: 30 | Q110: =IF(AND(ISBLANK(B110), ISBLANK(C110)), "X", "") -> X
C111: Change | D111: =IF(D110="","",D110-D108) -> 
A113: 31 | Q113: =IF(AND(ISBLANK(B113), ISBLANK(C113)), "X", "") -> X
C114: Change | D114: =IF(D113="","",D113-D111) -> 
A116: 32 | Q116: =IF(AND(ISBLANK(B116), ISBLANK(C116)), "X", "") -> X
C117: Change | D117: =IF(D116="","",D116-D114) -> 
A119: 33 | Q119: =IF(AND(ISBLANK(B119), ISBLANK(C119)), "X", "") -> X
C120: Change | D120: =IF(D119="","",D119-D117) -> 
A122: 34 | Q122: =IF(AND(ISBLANK(B122), ISBLANK(C122)), "X", "") -> X
C123: Change | D123: =IF(D122="","",D122-D120) -> 
A125: 35 | Q125: =IF(AND(ISBLANK(B125), ISBLANK(C125)), "X", "") -> X
C126: Change | D126: =IF(D125="","",D125-D123) -> 
A128: 36 | Q128: =IF(AND(ISBLANK(B128), ISBLANK(C128)), "X", "") -> X
C129: Change | D129: =IF(D128="","",D128-D126) -> 
R130: Page Break 2
A131: 37 | Q131: =IF(AND(ISBLANK(B131), ISBLANK(C131)), "X", "") -> X
C132: Change | D132: =IF(D131="","",D131-D129) -> 
A134: 38 | Q134: =IF(AND(ISBLANK(B134), ISBLANK(C134)), "X", "") -> X
C135: Change | D135: =IF(D134="","",D134-D132) -> 
A137: 39 | Q137: =IF(AND(ISBLANK(B137), ISBLANK(C137)), "X", "") -> X
C138: Change | D138: =IF(D137="","",D137-D135) -> 
A140: 40 | Q140: =IF(AND(ISBLANK(B140), ISBLANK(C140)), "X", "") -> X
C141: Change | D141: =IF(D140="","",D140-D138) -> 
A143: 41 | Q143: =IF(AND(ISBLANK(B143), ISBLANK(C143)), "X", "") -> X
C144: Change | D144: =IF(D143="","",D143-D141) -> 
A146: 42 | Q146: =IF(AND(ISBLANK(B146), ISBLANK(C146)), "X", "") -> X
C147: Change | D147: =IF(D146="","",D146-D144) -> 
A149: 43 | Q149: =IF(AND(ISBLANK(B149), ISBLANK(C149)), "X", "") -> X
C150: Change | D150: =IF(D149="","",D149-D147) -> 
A152: 44 | Q152: =IF(AND(ISBLANK(B152), ISBLANK(C152)), "X", "") -> X
C153: Change | D153: =IF(D152="","",D152-D150) -> 
A155: 45 | Q155: =IF(AND(ISBLANK(B155), ISBLANK(C155)), "X", "") -> X
C156: Change | D156: =IF(D155="","",D155-D153) -> 
A158: 46 | Q158: =IF(AND(ISBLANK(B158), ISBLANK(C158)), "X", "") -> X
C159: Change | D159: =IF(D158="","",D158-D156) -> 
A161: 47 | Q161: =IF(AND(ISBLANK(B161), ISBLANK(C161)), "X", "") -> X
C162: Change | D162: =IF(D161="","",D161-D159) -> 
A164: 48 | Q164: =IF(AND(ISBLANK(B164), ISBLANK(C164)), "X", "") -> X
C165: Change | D165: =IF(D164="","",D164-D162) -> 
A167: 49 | Q167: =IF(AND(ISBLANK(B167), ISBLANK(C167)), "X", "") -> X
C168: Change | D168: =IF(D167="","",D167-D165) -> 
A170: 50 | Q170: =IF(AND(ISBLANK(B170), ISBLANK(C170)), "X", "") -> X
C171: Change | D171: =IF(D170="","",D170-D168) -> 
A173: 51 | Q173: =IF(AND(ISBLANK(B173), ISBLANK(C173)), "X", "") -> X
C174: Change | D174: =IF(D173="","",D173-D171) -> 
A176: 52 | Q176: =IF(AND(ISBLANK(B176), ISBLANK(C176)), "X", "") -> X
C177: Change | D177: =IF(D176="","",D176-D174) -> 
A179: 53 | Q179: =IF(AND(ISBLANK(B179), ISBLANK(C179)), "X", "") -> X
C180: Change | D180: =IF(D179="","",D179-D177) -> 
R181: Page Break 3
A182: 54 | Q182: =IF(AND(ISBLANK(B182), ISBLANK(C182)), "X", "") -> X
C183: Change | D183: =IF(D182="","",D182-D180) -> 
A185: 55 | Q185: =IF(AND(ISBLANK(B185), ISBLANK(C185)), "X", "") -> X
C186: Change | D186: =IF(D185="","",D185-D183) -> 
A188: 56 | Q188: =IF(AND(ISBLANK(B188), ISBLANK(C188)), "X", "") -> X
C189: Change | D189: =IF(D188="","",D188-D186) -> 
A191: 57 | Q191: =IF(AND(ISBLANK(B191), ISBLANK(C191)), "X", "") -> X
C192: Change | D192: =IF(D191="","",D191-D189) -> 
A194: 58 | Q194: =IF(AND(ISBLANK(B194), ISBLANK(C194)), "X", "") -> X
C195: Change | D195: =IF(D194="","",D194-D192) -> 
A197: 59 | Q197: =IF(AND(ISBLANK(B197), ISBLANK(C197)), "X", "") -> X
C198: Change | D198: =IF(D197="","",D197-D195) -> 
A200: 60 | Q200: =IF(AND(ISBLANK(B200), ISBLANK(C200)), "X", "") -> X
C201: Change | D201: =IF(D200="","",D200-D198) -> 
R203: Page Break 4
